bitfinex/quotes_SOLUSD_20250410
["timestamp","ask_amount","ask_price","bid_price","bid_amount"]
[1744264220031,19.0113924,115.92,115.91,0.03]
[1744264221330,60.83488514,115.92,115.91,0.03]
[1744264221726,18.64964886,115.91,115.9,0.03]
[1744264221945,118.21444126,115.91,115.9,0.03]
[1744264222231,126.84174126,115.91,115.9,0.03]
[1744264222437,89.46432314,115.91,115.9,0.03]
[1744264222632,99.84911554,115.91,115.9,0.03]
[1744264223232,89.18,115.91,115.9,0.03]
[1744264223443,99.5647924,115.91,115.9,0.03]
[1744264223825,91.8847924,115.91,115.9,0.03]
[1744264224147,100.5120924,115.91,115.9,0.03]
[1744264224447,44.64964886,115.89,115.88,0.03]
[1744264224649,36.66911554,115.89,115.88,0.03]
[1744264225653,45.29791554,115.89,115.88,0.03]
[1744264226139,63.9475644,115.89,115.88,0.03]
[1744264226651,71.6875644,115.89,115.88,0.03]
[1744264229656,53.03791554,115.89,115.88,0.03]
[1744264232754,45.29791554,115.89,115.88,0.03]
[1744264234057,63.9475644,115.89,115.88,0.03]
[1744264234655,0.28432314,115.87,115.86,0.03]
[1744264235038,10.66911554,115.87,115.86,0.03]
[1744264235869,29.3187644,115.87,115.86,0.03]
[1744264236377,37.9490644,115.87,115.86,0.03]
[1744264236664,79.488234,115.87,115.86,0.03]
[1744264236856,36.3847924,115.84,115.83,0.03]
[1744264237485,36.66911554,115.84,115.83,0.03]
[1744264238168,36.3847924,115.84,115.83,0.03]
[1744264242960,45.0172924,115.84,115.83,0.03]
[1744264243877,36.3847924,115.84,115.83,0.03]
[1744264244800,26.0,115.84,115.83,0.03]
[1744264245094,8.6318,115.85,115.83,0.03]
[1744264245259,10.3847924,115.84,115.83,0.03]
[1744264249085,90.1312,115.86,115.83,0.03]
[1744264249267,81.5,115.86,115.83,0.03]
[1744264249472,10.3847924,115.85,115.83,0.03]
[1744264251789,90.1316,115.86,115.83,0.03]
[1744264251985,10.3847924,115.85,115.83,0.03]
[1744264252291,10.3847924,115.84,115.83,0.03]
[1744264253981,10.3847924,115.85,115.83,0.03]
[1744264254487,10.3847924,115.84,115.83,0.03]
[1744264254882,10.3847924,115.85,115.83,0.03]
[1744264255086,91.8847924,115.86,115.83,0.03]
[1744264255973,10.3847924,115.85,115.83,0.03]
[1744264258099,100.5161924,115.86,115.83,0.03]
[1744264258686,10.3847924,115.85,115.83,0.03]
[1744264260295,100.5161924,115.86,115.83,0.03]
[1744264260991,91.8847924,115.86,115.83,0.03]
[1744264261198,81.5,115.86,115.83,0.03]
[1744264261398,91.8847924,115.86,115.83,0.03]
[1744264261599,81.5,115.86,115.83,0.03]
[1744264261802,91.8847924,115.86,115.83,0.03]
[1744264262401,81.5,115.86,115.83,0.03]
[1744264263100,81.5,115.86,115.83,8.6633]
[1744264264000,91.8847924,115.86,115.83,8.6633]
[1744264265602,91.8847924,115.86,115.83,0.03]
[1744264266805,81.5,115.86,115.83,0.03]
[1744264266990,81.5,115.86,115.84,1.5126]
[1744264267782,10.3847924,115.88,115.85,8.6318]
[1744264268483,10.3847924,115.89,115.85,8.6318]
[1744264269280,10.3847924,115.89,115.85,19.0165924]
[1744264270107,10.3847924,115.89,115.85,8.6318]
[1744264270813,8.6296,115.88,115.83,0.03]
[1744264270997,10.3847924,115.85,115.83,0.03]
[1744264271585,10.3847924,115.85,115.83,8.6632]
[1744264272202,10.3847924,115.86,115.83,0.03]
[1744264272594,10.3847924,115.87,115.83,0.03]
[1744264273993,10.3847924,115.86,115.83,0.03]
[1744264275203,10.3847924,115.87,115.83,0.03]
[1744264275405,19.0152924,115.87,115.83,0.03]
[1744264276208,10.3847924,115.87,115.83,0.03]
[1744264276404,8.63,115.88,115.83,0.03]
[1744264276582,19.0147924,115.88,115.83,10.4147924]
[1744264277001,19.0147924,115.88,115.83,0.03]
[1744264278711,19.0152924,115.87,115.83,0.03]
[1744264279407,90.1284,115.9,115.84,12.0137924]
[1744264279606,90.1284,115.9,115.85,10.3847924]
[1744264280192,100.5131924,115.9,115.84,12.0137924]
[1744264280393,90.1284,115.9,115.86,19.0158924]
[1744264280606,19.0754924,115.91,115.86,19.0158924]
[1744264280808,0.063,115.91,115.86,19.0158924]
[1744264281310,8.6904,115.91,115.86,19.0158924]
[1744264282109,19.0751924,115.91,115.86,19.0158924]
[1744264289589,8.6904,115.91,115.85,8.6314]
[1744264289795,10.3847924,115.89,115.85,8.6314]
[1744264290515,10.3847924,115.9,115.85,19.0161924]
[1744264290703,19.0132924,115.9,115.85,8.6314]
[1744264290910,19.0132924,115.9,115.85,19.0161924]
[1744264294125,10.3847924,115.89,115.85,19.0161924]
[1744264298118,19.0132924,115.9,115.85,19.0161924]
[1744264298609,10.4477924,115.91,115.86,10.3847924]
[1744264298921,0.063,115.91,115.87,10.3847924]
[1744264299108,0.063,115.91,115.88,8.6296]
[1744264299109,10.4477924,115.91,115.88,8.6296]
[1744264299503,10.4477924,115.91,115.87,8.6299]
[1744264300219,10.3847924,115.9,115.86,19.0155924]
[1744264301530,19.0132924,115.9,115.86,19.0155924]
[1744264301742,19.0754924,115.91,115.86,19.0155924]
[1744264302552,0.063,115.91,115.9,10.3847924]
[1744264302711,0.063,115.95,115.9,11.8925924]
[1744264302917,0.063,115.95,115.93,10.3847924]
[1744264303222,0.063,115.95,115.94,10.3847924]
[1744264303403,0.063,115.95,115.91,6.07]
[1744264303602,0.063,115.95,115.92,19.0113924]
[1744264303907,0.063,115.95,115.92,8.6266]
[1744264304109,0.063,115.95,115.92,19.0113924]
[1744264304826,0.063,115.95,115.93,10.3847924]
[1744264305024,0.063,115.95,115.92,8.6266]
[1744264305025,0.063,115.95,115.94,10.3847924]
[1744264305525,0.063,115.95,115.94,19.0098924]
[1744264307825,0.063,115.95,115.93,8.6254]
[1744264308017,0.063,115.95,115.93,19.0101924]
[1744264308601,0.063,115.95,115.93,10.3847924]
[1744264308814,0.063,115.95,115.92,19.0109924]
[1744264310008,0.063,115.95,115.92,8.6262]
[1744264310226,0.063,115.95,115.92,19.0109924]
[1744264310919,0.063,115.95,115.92,8.6262]
[1744264311217,0.063,115.95,115.92,19.0109924]
[1744264311640,0.063,115.95,115.91,10.3847924]
[1744264312106,0.063,115.95,115.91,19.0119924]
[1744264312526,0.063,115.95,115.92,10.3847924]
[1744264313632,0.063,115.95,115.91,19.0119924]
[1744264313835,0.063,115.95,115.92,10.3847924]
[1744264314532,0.063,115.95,115.91,19.0119924]
[1744264315924,0.063,115.95,115.92,10.3847924]
[1744264316230,0.063,115.95,115.93,10.3847924]
[1744264317036,0.063,115.95,115.94,10.3847924]
[1744264317333,0.063,115.95,115.92,10.3847924]
[1744264317512,0.063,115.95,115.91,8.6272]
[1744264317716,0.063,115.95,115.92,10.3847924]
[1744264318214,0.063,115.95,115.91,19.0119924]
[1744264318833,0.063,115.95,115.91,8.6272]
[1744264319033,0.063,115.95,115.91,19.0119924]
[1744264319422,0.063,115.95,115.91,8.6272]
[1744264319632,10.3847924,115.94,115.9,20.5202924]
[1744264320145,19.0105924,115.94,115.9,1.5078]
[1744264323137,19.0105924,115.94,115.9,10.1358]
[1744264323433,26.063,115.95,115.91,10.3847924]
[1744264323434,36.4477924,115.95,115.91,10.3847924]
[1744264324127,36.4477924,115.95,115.9,20.5205924]
[1744264324329,45.0722924,115.95,115.9,20.5205924]
[1744264324927,36.4477924,115.95,115.9,20.5205924]
[1744264325349,45.0721924,115.95,115.9,20.5205924]
[1744264326233,10.3847924,115.93,115.89,8.6285]
[1744264327138,10.3847924,115.92,115.88,8.6296]
[1744264327441,62.4413,115.95,115.88,19.0143924]
[1744264327647,10.3847924,115.92,115.88,19.0143924]
[1744264327845,10.3847924,115.93,115.88,19.0143924]
[1744264328345,10.3847924,115.92,115.88,19.0143924]
[1744264328852,10.3847924,115.92,115.87,20.5924924]
[1744264329027,10.3847924,115.91,115.87,20.5924924]
[1744264329233,0.28432314,115.94,115.87,20.5924924]
[1744264329428,10.3847924,115.91,115.87,20.5924924]
[1744264329625,10.3847924,115.89,115.86,7.66]
[1744264329825,10.3847924,115.89,115.85,8.6316]
[1744264330218,30.1959,115.91,115.84,10.3847924]
[1744264330219,10.3847924,115.88,115.84,19.0171924]
[1744264330436,10.3847924,115.87,115.83,9.2678]
[1744264330642,10.3847924,115.87,115.83,19.6525924]
[1744264330843,10.3847924,115.87,115.83,9.2678]
[1744264331123,10.3847924,115.86,115.83,0.03]
[1744264331643,19.0159924,115.86,115.83,0.03]
[1744264333144,10.3847924,115.86,115.83,0.03]
[1744264333731,10.3847924,115.88,115.84,10.3847924]
[1744264335635,10.3847924,115.89,115.85,8.6318]
[1744264335837,10.3847924,115.89,115.85,19.0165924]
[1744264336648,10.3847924,115.89,115.85,8.6318]
[1744264338238,10.3847924,115.89,115.85,19.0165924]
[1744264338438,10.3847924,115.9,115.86,10.3847924]
[1744264338640,10.3847924,115.9,115.85,40.5961924]
[1744264339838,10.3847924,115.9,115.86,10.3847924]
[1744264340048,10.3847924,115.91,115.86,10.3847924]
[1744264340454,8.6266,115.92,115.87,10.3847924]
[1744264340651,10.3847924,115.91,115.87,10.3847924]
[1744264340838,10.3847924,115.91,115.86,10.3847924]
[1744264341038,10.3847924,115.91,115.87,10.3847924]
[1744264341550,10.3847924,115.91,115.86,10.3847924]
[1744264341854,10.3847924,115.9,115.86,10.3847924]
[1744264342047,8.6266,115.92,115.87,8.6303]
[1744264342247,10.3847924,115.91,115.87,8.6303]
[1744264346057,19.0113924,115.92,115.87,19.0150924]
[1744264346555,10.3847924,115.91,115.87,8.6303]
[1744264347958,19.0121924,115.91,115.87,8.6303]
[1744264348144,8.627,115.92,115.87,8.6303]
[1744264348343,10.3847924,115.91,115.87,8.6303]
[1744264348544,19.0117924,115.92,115.87,19.0150924]
[1744264349675,10.3847924,115.9,115.86,19.0158924]
[1744264349850,10.3847924,115.9,115.86,8.6311]
[1744264351866,19.0130924,115.9,115.86,8.6311]
[1744264354137,19.0130924,115.9,115.85,20.6041924]
[1744264356761,30.194,115.92,115.85,20.6041924]
[1744264356953,10.3847924,115.9,115.85,20.6041924]
[1744264357762,19.0129924,115.9,115.85,20.6041924]
[1744264364279,10.3847924,115.87,115.85,1.588]
[1744264364483,10.3847924,115.86,115.83,0.03]
[1744264364777,10.3847924,115.85,115.83,0.03]
[1744264364950,83.1214,115.9,115.83,0.03]
[1744264365157,36.3847924,115.87,115.83,0.03]
[1744264365964,26.0,115.87,115.83,19.0477924]
[1744264366276,36.3847924,115.87,115.83,8.663]
[1744264369265,8.6291,115.89,115.84,10.3847924]
[1744264369457,90.1284,115.9,115.84,10.3847924]
[1744264369656,10.3847924,115.89,115.85,10.3847924]
[1744264370275,10.3847924,115.89,115.84,10.3847924]
[1744264370454,19.0138924,115.89,115.85,8.6318]
[1744264370655,10.3847924,115.89,115.85,8.6318]
[1744264370988,10.3847924,115.89,115.85,19.0165924]
[1744264371201,81.5,115.9,115.86,12.0020924]
[1744264372371,91.8847924,115.9,115.86,1.6173]
[1744264372573,91.8847924,115.9,115.87,8.6303]
[1744264372777,100.5132924,115.9,115.86,10.2483]
[1744264373073,91.8847924,115.9,115.86,10.2483]
[1744264373874,100.5129924,115.9,115.86,10.2483]
[1744264375085,100.5129924,115.9,115.86,20.6330924]
[1744264375279,91.8847924,115.9,115.86,20.6330924]
[1744264376479,100.5129924,115.9,115.86,10.2483]
[1744264376860,91.8847924,115.9,115.86,10.2483]
[1744264377658,100.5128924,115.9,115.86,10.2483]
[1744264378280,100.5128924,115.9,115.86,20.6330924]
[1744264382685,100.5128924,115.9,115.86,10.2483]
[1744264385184,91.8847924,115.9,115.86,10.2483]
[1744264385489,81.5,115.9,115.86,20.6330924]
[1744264388769,90.1281,115.9,115.86,20.6330924]
[1744264388970,100.5128924,115.9,115.86,10.2483]
[1744264389192,91.8847924,115.9,115.86,10.2483]
[1744264389594,10.3847924,115.9,115.86,10.2483]
[1744264390808,19.0131924,115.9,115.86,10.2483]
[1744264391594,10.3847924,115.9,115.86,10.2483]
[1744264394498,19.0129924,115.9,115.86,1.6173]
[1744264394694,19.0136924,115.89,115.86,1.6173]
[1744264394896,19.0132924,115.9,115.86,10.2484]
[1744264395096,19.0130924,115.9,115.86,10.2484]
[1744264395804,10.3847924,115.9,115.86,10.2484]
[1744264397402,19.0129924,115.9,115.86,10.2484]
[1744264398188,26.0,115.91,115.87,10.3847924]
[1744264398401,8.6258,115.93,115.88,10.3847924]
[1744264398402,19.0105924,115.93,115.88,10.3847924]
[1744264398782,10.3847924,115.92,115.87,10.3847924]
[1744264399400,10.3847924,115.92,115.88,8.6296]
[1744264401302,19.0114924,115.92,115.88,8.6296]
[1744264402986,10.3847924,115.92,115.88,8.6296]
[1744264403793,19.0114924,115.92,115.88,8.6296]
[1744264404097,10.3847924,115.92,115.88,8.6296]
[1744264404410,19.0113924,115.92,115.88,8.6296]
[1744264407618,10.3847924,115.92,115.88,8.6296]
[1744264408314,19.0115924,115.92,115.88,8.6296]
[1744264409308,8.6268,115.92,115.88,8.6296]
[1744264409515,10.3847924,115.92,115.88,8.6296]
[1744264409695,19.0114924,115.92,115.88,8.6296]
[1744264412313,19.0105924,115.93,115.88,19.0143924]
[1744264414100,10.3847924,115.93,115.88,19.0143924]
[1744264414410,100.5101924,115.94,115.89,12.0467924]
[1744264414793,91.8847924,115.94,115.89,12.0467924]
[1744264415294,91.8847924,115.94,115.89,18.5066924]
[1744264415508,10.4477924,115.95,115.9,10.3847924]
[1744264416110,10.4477924,115.95,115.91,8.6273]
[1744264416314,36.3847924,115.94,115.91,8.6273]
[1744264418212,10.3847924,115.93,115.89,16.7503]
[1744264418815,10.3847924,115.92,115.89,1.662]
[1744264419004,10.3847924,115.91,115.89,1.662]
[1744264421716,19.0121924,115.91,115.89,1.662]
[1744264422413,10.3847924,115.91,115.89,1.662]
[1744264422604,19.0121924,115.91,115.89,1.662]
[1744264423413,19.0121924,115.91,115.86,8.0029]
[1744264423717,10.3847924,115.89,115.86,1.543]
[1744264423920,10.3847924,115.89,115.86,10.174]
[1744264426014,19.0132924,115.9,115.86,10.174]
[1744264427704,30.1939,115.92,115.86,10.174]
[1744264427899,10.3847924,115.9,115.86,20.5587924]
[1744264428099,8.6266,115.92,115.86,20.5587924]
[1744264428298,10.3847924,115.9,115.86,20.5587924]
[1744264430011,19.0113924,115.92,115.87,10.3847924]
[1744264430405,8.6266,115.92,115.88,10.3847924]
[1744264430600,19.0113924,115.92,115.87,10.3847924]
[1744264430807,10.3847924,115.91,115.87,10.3847924]
[1744264432423,10.3847924,115.91,115.88,8.6296]
[1744264434718,90.1259,115.93,115.88,19.0143924]
[1744264434917,100.5106924,115.93,115.88,19.0143924]
[1744264435637,10.3847924,115.92,115.88,19.0143924]
[1744264436021,90.1259,115.93,115.88,19.0143924]
[1744264436331,10.3847924,115.92,115.88,19.0143924]
[1744264438729,91.8847924,115.93,115.88,19.0143924]
[1744264439610,91.8847924,115.93,115.89,10.3847924]
[1744264439817,81.5,115.93,115.89,10.3847924]
[1744264440113,91.8847924,115.93,115.89,10.3847924]
[1744264440442,10.3847924,115.92,115.88,19.0143924]
[1744264440744,19.0113924,115.92,115.88,8.6296]
[1744264445942,90.1263,115.93,115.88,8.6296]
[1744264446137,90.1263,115.93,115.88,19.0143924]
[1744264446315,100.5110924,115.93,115.88,19.0143924]
[1744264453845,100.5110924,115.93,115.88,8.6296]
[1744264455752,81.5,115.93,115.88,19.0143924]
[1744264456047,81.5,115.93,115.88,30.2036]
[1744264456244,10.4477924,115.95,115.9,11.9584924]
[1744264456425,0.063,115.95,115.9,11.9584924]
[1744264457026,10.4477924,115.95,115.9,11.9584924]
[1744264457867,10.4477924,115.95,115.91,8.6273]
[1744264460128,19.0721924,115.95,115.91,8.6273]
[1744264460329,10.3847924,115.94,115.91,8.6273]
[1744264460653,10.3847924,115.92,115.9,1.5737]
[1744264462354,8.6261,115.93,115.9,1.5737]
[1744264462536,10.3847924,115.92,115.9,1.5737]
[1744264462739,8.6261,115.93,115.9,1.5737]
[1744264462938,10.3847924,115.92,115.9,1.5737]
[1744264463144,10.3847924,115.92,115.89,8.6288]
[1744264463145,10.3847924,115.91,115.86,1.5737]
[1744264463342,41.82349274,115.92,115.86,1.5737]
[1744264463343,10.3847924,115.89,115.86,1.5737]
[1744264464355,19.0137924,115.89,115.86,1.5737]
[1744264464547,10.3847924,115.88,115.83,20.6213924]
[1744264465185,10.3847924,115.88,115.85,0.03]
[1744264466168,19.0143924,115.88,115.85,0.03]
[1744264472684,19.0157924,115.87,115.85,0.03]
[1744264472862,10.3847924,115.86,115.85,0.03]
[1744264473240,10.66911554,115.86,115.85,0.03]
[1744264474155,19.30021554,115.86,115.85,0.03]
[1744264478563,37.9498644,115.86,115.85,0.03]
[1744264479239,44.2974644,115.86,115.85,0.03]
[1744264480188,19.0158924,115.86,115.85,0.03]
[1744264480761,10.3847924,115.86,115.85,0.03]
[1744264482359,19.0158924,115.86,115.85,0.03]
[1744264484576,10.3847924,115.86,115.85,0.03]
[1744264484873,10.3847924,115.87,115.85,0.03]
[1744264485766,19.0153924,115.87,115.85,0.03]
[1744264492255,8.6306,115.87,115.85,0.03]
[1744264492477,19.0153924,115.87,115.85,0.03]
[1744264492781,10.3847924,115.87,115.85,0.03]
[1744264493360,19.0152924,115.87,115.85,0.03]
[1744264494898,10.3847924,115.87,115.85,0.03]
[1744264495084,100.5150924,115.88,115.85,0.03]
[1744264495594,91.8847924,115.88,115.85,0.03]
[1744264495782,100.5143924,115.88,115.85,0.03]
[1744264496378,91.8847924,115.88,115.85,0.03]
[1744264496585,81.5,115.88,115.85,0.03]
[1744264497381,10.3847924,115.9,115.85,10.4147924]
[1744264497582,8.6278,115.91,115.86,10.3847924]
[1744264497880,19.0125924,115.91,115.86,10.3847924]
[1744264498089,10.3847924,115.9,115.86,10.3847924]
[1744264498982,10.3847924,115.9,115.87,8.6303]
[1744264499485,81.64216157,115.93,115.87,19.0150924]
[1744264499682,10.3847924,115.93,115.89,10.3847924]
[1744264500473,10.3847924,115.94,115.89,10.3847924]
[1744264500677,10.3847924,115.93,115.89,19.0129924]
[1744264500873,10.3847924,115.93,115.89,8.6282]
[1744264501069,10.3847924,115.93,115.89,19.0129924]
[1744264501283,10.3847924,115.93,115.89,8.6282]
[1744264502098,10.3847924,115.94,115.89,19.0129924]
[1744264502387,10.4477924,115.95,115.9,10.3847924]
[1744264502768,19.0722924,115.95,115.91,8.6273]
[1744264503568,10.3847924,115.94,115.91,8.6273]
[1744264504091,19.0722924,115.95,115.91,8.6273]
[1744264504283,0.063,115.95,115.92,1.5809]
[1744264504870,0.063,115.95,115.93,8.6258]
[1744264506187,0.063,115.95,115.92,10.2071]
[1744264506483,10.4477924,115.95,115.92,10.2071]
[1744264506684,0.063,115.95,115.92,10.2071]
[1744264508793,10.4477924,115.95,115.92,10.2071]
[1744264509500,19.0723924,115.95,115.92,1.5809]
[1744264509670,10.3847924,115.93,115.9,8.6278]
[1744264512799,8.6878,115.95,115.9,8.6278]
[1744264513093,10.3847924,115.94,115.9,8.6278]
[1744264513895,19.0099924,115.94,115.89,1.5809]
[1744264514083,10.3847924,115.93,115.89,10.2093]
[1744264515394,10.3847924,115.94,115.89,20.5940924]
[1744264516185,10.4477924,115.95,115.9,10.3847924]
[1744264516692,19.0722924,115.95,115.9,10.3847924]
[1744264518299,19.0722924,115.95,115.91,8.6273]
[1744264518498,10.4477924,115.95,115.91,8.6273]
[1744264518687,10.3847924,115.94,115.9,8.6277]
[1744264522491,0.063,115.95,115.91,10.3847924]
[1744264524002,10.4477924,115.95,115.91,18.64964886]
[1744264524390,10.4477924,115.95,115.92,8.6266]
[1744264524900,0.063,115.95,115.92,8.6266]
[1744264525608,10.4477924,115.95,115.92,8.6266]
[1744264526803,0.063,115.95,115.92,8.6266]
[1744264528397,0.063,115.95,115.92,19.0113924]
[1744264532728,0.063,115.95,115.92,8.6266]
[1744264535187,0.063,115.95,115.93,29.03444126]
[1744264535392,0.063,115.95,115.93,30.55164126]
[1744264536917,0.063,115.95,115.94,8.6251]
[1744264538019,0.063,115.95,115.94,27.27474886]
[1744264539919,0.063,115.95,115.94,37.65954126]
[1744264546611,0.063,115.95,115.94,37.9438644]
[1744264546917,0.063,115.95,115.94,119.1434644]
[1744264547796,0.063,115.96,115.95,26.62704886]
[1744264548002,0.0001,115.96,115.95,127.1201644]
[1744264548199,0.0001,115.98,115.97,26.0]
[1744264548500,0.0001,115.98,115.97,143.87404126]
[1744264550124,0.0001,115.98,115.97,152.49694126]
[1744264550619,0.0001,115.98,115.97,143.87404126]
[1744264552309,0.0001,115.98,115.97,117.87404126]
[1744264553823,0.0001,115.98,115.97,36.67444126]
[1744264556839,0.0001,115.98,115.97,26.28964886]
[1744264557012,0.0001,115.98,115.97,36.67444126]
[1744264560742,0.0001,115.98,115.97,45.29734126]
[1744264560918,0.0001,115.98,115.97,36.67444126]
[1744264563639,0.0001,115.98,115.97,45.29734126]
[1744264563832,0.0001,115.98,115.97,36.67444126]
[1744264564344,0.0001,115.98,115.97,45.29734126]
[1744264564917,0.0001,115.98,115.97,126.7812644]
[1744264568219,10.1998924,116.03,115.97,126.7812644]
[1744264568419,10.1998924,116.03,115.99,18.64964886]
[1744264568935,8.6192,116.02,115.99,18.64964886]
[1744264570344,8.6192,116.02,115.98,10.3847924]
[1744264570643,19.0039924,116.02,115.98,18.64964886]
[1744264572020,40.5519924,116.02,115.97,18.0247924]
[1744264572220,10.3847924,116.01,115.97,7.64]
[1744264572721,19.0053924,116.0,115.96,18.64964886]
[1744264573329,19.0053924,116.0,115.96,27.27324886]
[1744264573545,19.0053924,116.0,115.96,18.64964886]
[1744264573929,19.0053924,116.0,115.96,27.27314886]
[1744264574823,19.0053924,116.0,115.96,37.65794126]
[1744264575022,19.0053924,116.0,115.96,27.27314886]
[1744264575240,19.0053924,116.0,115.96,37.65794126]
[1744264575640,8.6199,116.01,115.96,37.65794126]
[1744264575841,19.0046924,116.01,115.96,37.65794126]
[1744264576954,19.0046924,116.01,115.96,29.03444126]
[1744264577439,19.0046924,116.01,115.96,37.65794126]
[1744264581648,19.0046924,116.01,115.96,29.03444126]
[1744264582950,19.0046924,116.01,115.96,37.65794126]
[1744264585261,10.2159,116.02,115.97,18.64964886]
[1744264585459,10.2159,116.02,115.98,10.3847924]
[1744264585623,15.0625,116.03,115.99,10.3847924]
[1744264586945,15.0625,116.03,115.99,19.0058924]
[1744264587152,15.0625,116.03,115.99,37.65554126]
[1744264587861,6.4436,116.03,116.0,29.03444126]
[1744264588159,0.063,116.04,116.0,29.03444126]
[1744264588559,0.063,116.04,116.01,10.3847924]
[1744264589049,0.063,116.04,116.01,19.0042924]
[1744264590173,0.063,116.04,116.01,10.3847924]
[1744264591158,0.063,116.04,116.0,37.65464126]
[1744264592467,0.063,116.04,116.0,27.26984886]
[1744264592640,10.4477924,116.04,116.0,18.64964886]
[1744264593147,10.3847924,116.03,115.98,107.8461924]
[1744264593473,10.3847924,116.02,115.98,88.8396]
[1744264593669,10.3847924,116.01,115.98,88.8396]
[1744264594036,10.3847924,116.02,115.98,88.8396]
[1744264594645,8.6199,116.01,115.98,88.8396]
[1744264595041,8.6199,116.01,115.98,81.1996]
[1744264595362,19.0046924,116.01,115.97,18.64964886]
[1744264597254,10.3847924,115.99,115.96,18.64964886]
[1744264597459,10.3847924,115.98,115.95,18.64964886]
[1744264597963,10.3847924,115.99,115.95,18.64964886]
[1744264598553,10.3847924,115.98,115.94,18.64964886]
[1744264598748,10.3847924,115.97,115.93,18.64964886]
[1744264598950,10.3847924,115.96,115.93,18.64964886]
[1744264599270,10.3847924,115.95,115.92,7.703]
[1744264599439,10.3847924,115.95,115.92,0.063]
[1744264599869,10.3847924,115.96,115.92,19.0742924]
[1744264600167,10.3847924,115.96,115.92,8.6895]
[1744264600553,10.3847924,115.95,115.92,8.6895]
[1744264601163,10.3847924,115.95,115.92,0.063]
[1744264601366,10.3847924,115.94,115.92,0.063]
[1744264602667,19.0104924,115.94,115.92,0.063]
[1744264603269,16.4319924,115.93,115.92,0.063]
[1744264604870,25.0577924,115.93,115.92,0.063]
[1744264605847,6.0472,115.93,115.92,0.063]
[1744264606047,19.0094924,115.95,115.92,0.063]
[1744264606243,10.3847924,115.95,115.92,0.063]
[1744264606752,97.7034,115.96,115.92,0.063]
[1744264607172,10.3847924,115.95,115.92,0.063]
[1744264608578,19.0079924,115.97,115.92,10.4477924]
[1744264609375,24.86581596,115.97,115.93,8.6258]
[1744264609550,16.24261596,115.96,115.93,8.6258]
[1744264613056,16.24261596,115.97,115.93,8.6258]
[1744264614779,16.24261596,115.97,115.92,8.6896]
[1744264614973,24.86551596,115.97,115.92,24.93221596]
[1744264617881,16.24261596,115.96,115.92,24.93221596]
[1744264618880,16.24261596,115.96,115.92,8.6896]
[1744264619684,8.6229,115.97,115.92,24.93221596]
[1744264619982,24.86551596,115.97,115.92,24.93221596]
[1744264620459,16.24261596,115.97,115.93,36.42186482]
[1744264620663,16.24261596,115.98,115.93,36.42186482]
[1744264621487,16.24261596,115.98,115.94,16.24261596]
[1744264621981,16.24261596,115.98,115.95,8.6244]
[1744264622187,8.6199,116.01,115.96,34.89226482]
[1744264622367,24.86251596,116.01,115.96,34.89226482]
[1744264622679,24.86201596,116.02,115.97,16.24261596]
[1744264622873,24.86201596,116.02,115.98,16.24261596]
[1744264623075,81.563,116.04,115.99,34.89226482]
[1744264623076,0.063,116.04,115.99,34.89226482]
[1744264623258,16.24261596,116.03,115.99,34.89226482]
[1744264623462,16.30561596,116.04,116.0,16.24261596]
[1744264623663,24.92331596,116.04,115.99,34.89226482]
[1744264624077,24.92331596,116.04,116.0,8.6206]
[1744264625291,0.063,116.04,116.0,24.86321596]
[1744264626480,0.063,116.04,116.01,34.89226482]
[1744264626984,0.063,116.04,116.02,16.24261596]
[1744264627484,0.063,116.04,116.03,8.6184]
[1744264628063,0.063,116.04,116.03,27.26804886]
[1744264628788,0.063,116.04,116.03,43.51066482]
[1744264629788,0.063,116.04,116.03,45.04026482]
[1744264630080,0.063,116.04,116.03,45.32458796]
[1744264630580,0.063,116.05,116.04,18.933972]
[1744264630786,0.063,116.05,116.04,35.17658796]
[1744264631769,0.063,116.05,116.04,43.79428796]
[1744264632285,0.063,116.05,116.04,124.99388796]
[1744264633063,0.063,116.06,116.04,141.23650392]
[1744264633282,0.063,116.06,116.05,55.17658796]
[1744264633588,0.063,116.06,116.05,136.37618796]
[1744264633776,0.063,116.06,116.05,144.99308796]